[Event "*** Titled Tuesday Blitz"]
[Site "Chess.com"]
[Date "2020.03.03"]
[Round "3"]
[White "Koksik_13"]
[Black "Noam_Vitenberg"]
[Result "0-1"]
[WhiteElo "2743"]
[BlackElo "2467"]
[TimeControl "180+1"]
[EndTime "13:32:15 PST"]
[Termination "Noam_Vitenberg won by checkmate"]

1. e4 {[%clk 0:03:00.9]} 1... c6 {[%clk 0:02:58.2]} 2. d4 {[%clk 0:03:00.6]}
2... d5 {[%clk 0:02:58.2]} 3. Nc3 {[%clk 0:03:00.7]} 3... dxe4 {[%clk 0:02:57]}
4. Nxe4 {[%clk 0:03:01.6]} 4... Nf6 {[%clk 0:02:57.9]} 5. Nxf6+ {[%clk
0:03:00.9]} 5... exf6 {[%clk 0:02:57.7]} 6. Nf3 {[%clk 0:03:00.6]} 6... Bd6
{[%clk 0:02:55.9]} 7. Be3 {[%clk 0:02:59.1]} 7... O-O {[%clk 0:02:49]} 8. Bd3
{[%clk 0:02:57.6]} 8... Re8 {[%clk 0:02:45.7]} 9. Qd2 {[%clk 0:02:57.3]} 9...
Nd7 {[%clk 0:02:42.9]} 10. O-O-O {[%clk 0:02:56.1]} 10... b5 {[%clk 0:02:39.3]}
11. Rhe1 {[%clk 0:02:54.4]} 11... Nb6 {[%clk 0:02:36.3]} 12. Bf4 {[%clk
0:02:52.7]} 12... Be6 {[%clk 0:02:31.7]} 13. Kb1 {[%clk 0:02:40.4]} 13... b4
{[%clk 0:02:24.2]} 14. Bxd6 {[%clk 0:02:18.2]} 14... Qxd6 {[%clk 0:02:22.8]} 15.
Be4 {[%clk 0:02:15.4]} 15... a5 {[%clk 0:02:16.6]} 16. g3 {[%clk 0:02:00.1]}
16... Bxa2+ {[%clk 0:02:10.5]} 17. Kc1 {[%clk 0:01:37.1]} 17... Bd5 {[%clk
0:02:07]} 18. Bxd5 {[%clk 0:01:34.5]} 18... Qxd5 {[%clk 0:02:07.9]} 19. Qd3
{[%clk 0:01:28]} 19... Qa2 {[%clk 0:02:01]} 20. Qb3 {[%clk 0:01:22.9]} 20...
Qxb3 {[%clk 0:01:52.7]} 21. cxb3 {[%clk 0:01:22.7]} 21... Kf8 {[%clk 0:01:51.3]}
22. Kd2 {[%clk 0:01:22.5]} 22... Red8 {[%clk 0:01:31.7]} 23. Rc1 {[%clk
0:01:21.8]} 23... Rd6 {[%clk 0:01:28.9]} 24. Ke2 {[%clk 0:01:12.1]} 24... Re8+
{[%clk 0:01:25.1]} 25. Kd3 {[%clk 0:01:10.6]} 25... Rxe1 {[%clk 0:01:26]} 26.
Nxe1 {[%clk 0:01:09.7]} 26... Nd7 {[%clk 0:01:25.8]} 27. Ke3 {[%clk 0:01:07.8]}
27... Ke7 {[%clk 0:01:23.6]} 28. Nd3 {[%clk 0:01:07.7]} 28... Re6+ {[%clk
0:01:19.2]} 29. Kd2 {[%clk 0:01:07.6]} 29... Rd6 {[%clk 0:01:19.1]} 30. Ke3
{[%clk 0:01:07.2]} 30... Kd8 {[%clk 0:01:15.3]} 31. Ra1 {[%clk 0:01:05.1]} 31...
Rd5 {[%clk 0:01:14.1]} 32. Nf4 {[%clk 0:01:00.9]} 32... Rb5 {[%clk 0:01:13.7]}
33. Rc1 {[%clk 0:00:54.5]} 33... Kc7 {[%clk 0:01:04.1]} 34. Kd3 {[%clk
0:00:54.3]} 34... Kd6 {[%clk 0:01:02.3]} 35. Re1 {[%clk 0:00:52.8]} 35... Rb8
{[%clk 0:00:59.6]} 36. Nh5 {[%clk 0:00:49.3]} 36... g6 {[%clk 0:00:56.5]} 37.
Nf4 {[%clk 0:00:49.3]} 37... c5 {[%clk 0:00:52.6]} 38. Ne2 {[%clk 0:00:47.5]}
38... cxd4 {[%clk 0:00:52]} 39. Nxd4 {[%clk 0:00:47.5]} 39... Ne5+ {[%clk
0:00:50]} 40. Ke2 {[%clk 0:00:33.1]} 40... Rc8 {[%clk 0:00:43.5]} 41. Rd1 {[%clk
0:00:32.3]} 41... Ke7 {[%clk 0:00:44]} 42. f4 {[%clk 0:00:31.2]} 42... Nd7
{[%clk 0:00:35.8]} 43. Kf3 {[%clk 0:00:29.6]} 43... Nc5 {[%clk 0:00:30.6]} 44.
Ra1 {[%clk 0:00:29.2]} 44... Ra8 {[%clk 0:00:23.1]} 45. h4 {[%clk 0:00:20.8]}
45... Kd6 {[%clk 0:00:21.7]} 46. Rd1 {[%clk 0:00:20.2]} 46... Kc7 {[%clk
0:00:21.8]} 47. h5 {[%clk 0:00:20.1]} 47... a4 {[%clk 0:00:18.4]} 48. bxa4
{[%clk 0:00:17.5]} 48... Rxa4 {[%clk 0:00:19.3]} 49. h6 {[%clk 0:00:14.5]} 49...
Ra2 {[%clk 0:00:15.5]} 50. Rd2 {[%clk 0:00:13]} 50... Na4 {[%clk 0:00:11.4]} 51.
Re2 {[%clk 0:00:10.5]} 51... Kd6 {[%clk 0:00:09.2]} 52. Nb5+ {[%clk 0:00:10.3]}
52... Kc5 {[%clk 0:00:08.3]} 53. Nc7 {[%clk 0:00:09.2]} 53... Rxb2 {[%clk
0:00:06.9]} 54. Re7 {[%clk 0:00:09]} 54... Rh2 {[%clk 0:00:05.5]} 55. Rxf7
{[%clk 0:00:07.4]} 55... Rxh6 {[%clk 0:00:06]} 56. Ne6+ {[%clk 0:00:06]} 56...
Kc4 {[%clk 0:00:05.1]} 57. Rc7+ {[%clk 0:00:05.3]} 57... Kd5 {[%clk 0:00:04.3]}
58. Nd8 {[%clk 0:00:02.4]} 58... b3 {[%clk 0:00:04.2]} 59. Rb7 {[%clk
0:00:02.3]} 59... b2 {[%clk 0:00:03.7]} 60. Nf7 {[%clk 0:00:03.2]} 60... Rh1
{[%clk 0:00:03.3]} 61. Rb5+ {[%clk 0:00:03]} 61... Kc4 {[%clk 0:00:03.1]} 62.
Rb8 {[%clk 0:00:02.9]} 62... b1=Q {[%clk 0:00:03]} 63. Nd6+ {[%clk 0:00:03.8]}
63... Kd5 {[%clk 0:00:03.4]} 64. Rxb1 {[%clk 0:00:03.4]} 64... Rxb1 {[%clk
0:00:04.3]} 65. Ne8 {[%clk 0:00:04.1]} 65... Rb3+ {[%clk 0:00:04.3]} 66. Kg4
{[%clk 0:00:04.1]} 66... Ke6 {[%clk 0:00:05.2]} 67. Nc7+ {[%clk 0:00:04.1]}
67... Kf7 {[%clk 0:00:05.3]} 68. Nd5 {[%clk 0:00:05]} 68... f5+ {[%clk
0:00:05.4]} 69. Kg5 {[%clk 0:00:04.4]} 69... Nc5 {[%clk 0:00:05.4]} 70. Kh6
{[%clk 0:00:04.2]} 70... Rxg3 {[%clk 0:00:03.8]} 71. Nc7 {[%clk 0:00:03.3]}
71... Rh3+ {[%clk 0:00:03.4]} 72. Kg5 {[%clk 0:00:03.3]} 72... h6# {[%clk
0:00:03.8]} 0-1

[Event "*** Titled Tuesday Blitz"]
[Site "Chess.com"]
[Date "2020.03.03"]
[Round "3"]
[White "LittlePeasant"]
[Black "AlleyOoper"]
[Result "1/2-1/2"]
[WhiteElo "2807"]
[BlackElo "2622"]
[TimeControl "180+1"]
[EndTime "13:32:17 PST"]
[Termination "Game drawn by agreement"]

1. d4 {[%clk 0:02:55.6]} 1... Nf6 {[%clk 0:02:59.8]} 2. c4 {[%clk 0:02:55.6]}
2... c5 {[%clk 0:02:59.9]} 3. d5 {[%clk 0:02:55.6]} 3... b5 {[%clk 0:03:00.4]}
4. cxb5 {[%clk 0:02:55.6]} 4... a6 {[%clk 0:03:00.7]} 5. bxa6 {[%clk 0:02:53.1]}
5... g6 {[%clk 0:03:01.2]} 6. Nc3 {[%clk 0:02:53.2]} 6... Bg7 {[%clk 0:03:01.6]}
7. e4 {[%clk 0:02:53]} 7... O-O {[%clk 0:03:01.7]} 8. a7 {[%clk 0:02:47.4]} 8...
Rxa7 {[%clk 0:03:01.2]} 9. e5 {[%clk 0:02:42.4]} 9... Ne8 {[%clk 0:02:59.2]} 10.
Nf3 {[%clk 0:02:42.7]} 10... d6 {[%clk 0:02:59]} 11. exd6 {[%clk 0:02:42.2]}
11... Nxd6 {[%clk 0:02:58.7]} 12. Be2 {[%clk 0:02:41.2]} 12... Na6 {[%clk
0:02:55]} 13. O-O {[%clk 0:02:40.4]} 13... Nb4 {[%clk 0:02:54.9]} 14. Be3 {[%clk
0:02:31.3]} 14... Ra5 {[%clk 0:02:05.7]} 15. a3 {[%clk 0:02:24.6]} 15... Na6
{[%clk 0:02:05.9]} 16. Rc1 {[%clk 0:02:24.2]} 16... Bb7 {[%clk 0:01:56.4]} 17.
Nd2 {[%clk 0:02:13.8]} 17... Nc7 {[%clk 0:01:48.8]} 18. Nb3 {[%clk 0:02:10.6]}
18... Bxc3 {[%clk 0:01:37.5]} 19. bxc3 {[%clk 0:02:06.2]} 19... Rxa3 {[%clk
0:01:36.1]} 20. Bxc5 {[%clk 0:01:59.9]} 20... Ra2 {[%clk 0:01:35.6]} 21. c4
{[%clk 0:01:55.5]} 21... Na6 {[%clk 0:01:26.4]} 22. Bd4 {[%clk 0:01:55]} 22...
Nf5 {[%clk 0:01:25.3]} 23. Ba1 {[%clk 0:01:52]} 23... e6 {[%clk 0:01:19.6]} 24.
Bd3 {[%clk 0:01:47.8]} 24... Nh4 {[%clk 0:01:07.2]} 25. Qg4 {[%clk 0:01:36.3]}
25... exd5 {[%clk 0:00:54.3]} 26. Qd4 {[%clk 0:01:20.9]} 26... Rxa1 {[%clk
0:00:47.3]} 27. Rxa1 {[%clk 0:01:20.8]} 27... Nb4 {[%clk 0:00:38.9]} 28. c5
{[%clk 0:00:59.3]} 28... Qg5 {[%clk 0:00:32]} 29. Qxh4 {[%clk 0:00:27]} 29...
Qxh4 {[%clk 0:00:31.2]} 30. Rfd1 {[%clk 0:00:27.9]} 30... Nxd3 {[%clk 0:00:26]}
31. Rxd3 {[%clk 0:00:28.8]} 31... Qc4 {[%clk 0:00:26.5]} 32. Rad1 {[%clk
0:00:27.3]} 32... d4 {[%clk 0:00:24.7]} 33. Na5 {[%clk 0:00:19.9]} 33... Qb5
{[%clk 0:00:19.3]} 34. Nxb7 {[%clk 0:00:20.5]} 34... Qxb7 {[%clk 0:00:19.6]} 35.
Rxd4 {[%clk 0:00:21.4]} 35... Qc6 {[%clk 0:00:20.2]} 36. Rc1 {[%clk 0:00:21.4]}
36... Rc8 {[%clk 0:00:20.6]} 37. g3 {[%clk 0:00:20.3]} 37... Qb5 {[%clk
0:00:18.8]} 38. Rdc4 {[%clk 0:00:20.5]} 38... Rc6 {[%clk 0:00:19.2]} 39. R1c2
{[%clk 0:00:21.1]} 39... h5 {[%clk 0:00:19.8]} 40. Kg2 {[%clk 0:00:22]} 40...
Qb3 {[%clk 0:00:20.5]} 41. h4 {[%clk 0:00:22.4]} 41... Qd3 {[%clk 0:00:21.2]}
42. R2c3 {[%clk 0:00:22.6]} 42... Qd5+ {[%clk 0:00:21.7]} 43. Kg1 {[%clk
0:00:23.5]} 43... Ra6 {[%clk 0:00:22]} 44. Rc1 {[%clk 0:00:23.2]} 44... Rc6
{[%clk 0:00:21.9]} 45. R1c3 {[%clk 0:00:22.9]} 45... Qe6 {[%clk 0:00:22.4]} 46.
Rc1 {[%clk 0:00:23.3]} 46... Qf5 {[%clk 0:00:23.1]} 47. R4c3 {[%clk 0:00:23.7]}
47... Kg7 {[%clk 0:00:23.8]} 48. Rc4 {[%clk 0:00:24.2]} 48... Qf3 {[%clk
0:00:24]} 49. R4c3 {[%clk 0:00:24.2]} 49... Qf5 {[%clk 0:00:24.3]} 50. Rc4
{[%clk 0:00:25.1]} 50... g5 {[%clk 0:00:24.8]} 51. hxg5 {[%clk 0:00:24.6]} 51...
Qxg5 {[%clk 0:00:25.2]} 52. Kg2 {[%clk 0:00:25.3]} 52... Qf5 {[%clk 0:00:25.5]}
53. R1c3 {[%clk 0:00:25.2]} 53... Qd5+ {[%clk 0:00:25.9]} 54. Kg1 {[%clk
0:00:25.1]} 54... h4 {[%clk 0:00:24.8]} 55. Rxh4 {[%clk 0:00:23.4]} 55... Rxc5
{[%clk 0:00:24.8]} 56. Rxc5 {[%clk 0:00:24.3]} 56... Qxc5 {[%clk 0:00:25.7]} 57.
Rf4 {[%clk 0:00:25.2]} 57... Kf8 {[%clk 0:00:26.3]} 58. Kg2 {[%clk 0:00:26.1]}
58... Qd5+ {[%clk 0:00:26.9]} 59. Kg1 {[%clk 0:00:26.3]} 59... Qd6 {[%clk
0:00:27.5]} 60. Kg2 {[%clk 0:00:27.2]} 60... Kg7 {[%clk 0:00:28.1]} 61. Kg1
{[%clk 0:00:28.1]} 61... Kf8 {[%clk 0:00:27.7]} 62. Kg2 {[%clk 0:00:28.5]} 62...
Ke7 {[%clk 0:00:28.4]} 63. Kg1 {[%clk 0:00:28.6]} 63... Qd5 {[%clk 0:00:29.1]}
64. Kh2 {[%clk 0:00:27.8]} 64... f5 {[%clk 0:00:29.3]} 65. Kg1 {[%clk
0:00:27.9]} 65... Ke6 {[%clk 0:00:29.8]} 66. Kh2 {[%clk 0:00:27.8]} 66... Ke5
{[%clk 0:00:30.3]} 67. Kg1 {[%clk 0:00:28.2]} 67... Qd1+ {[%clk 0:00:30.9]} 68.
Kg2 {[%clk 0:00:28.4]} 68... Qe1 {[%clk 0:00:31]} 69. Rh4 {[%clk 0:00:25.6]}
69... Qe2 {[%clk 0:00:29]} 70. Rf4 {[%clk 0:00:26.5]} 70... Kf6 {[%clk
0:00:29.1]} 71. Rh4 {[%clk 0:00:26.7]} 71... Kg5 {[%clk 0:00:29.4]} 72. Rf4
{[%clk 0:00:27.6]} 72... Qe1 {[%clk 0:00:29.8]} 73. Rh4 {[%clk 0:00:27.6]} 73...
Qe6 {[%clk 0:00:30.2]} 74. Rf4 {[%clk 0:00:28.5]} 74... Qc6+ {[%clk 0:00:30.6]}
75. Kg1 {[%clk 0:00:29.4]} 75... Qd5 {[%clk 0:00:29.4]} 76. Kh2 {[%clk
0:00:29.3]} 76... Qd2 {[%clk 0:00:28.9]} 77. Kg2 {[%clk 0:00:29.3]} 77... Qe2
{[%clk 0:00:29.4]} 78. Rh4 {[%clk 0:00:29.4]} 78... Kf6 {[%clk 0:00:29.5]} 79.
Rf4 {[%clk 0:00:29.9]} 79... Ke5 {[%clk 0:00:30.1]} 80. Rh4 {[%clk 0:00:30]}
80... Qe1 {[%clk 0:00:29.5]} 81. Rf4 {[%clk 0:00:30]} 81... Qc3 {[%clk
0:00:29.2]} 82. Kg1 {[%clk 0:00:30.2]} 82... Qc6 {[%clk 0:00:29.6]} 83. Rh4
{[%clk 0:00:30.4]} 83... Qg6 {[%clk 0:00:29.7]} 84. Rf4 {[%clk 0:00:30.7]} 84...
Qc6 {[%clk 0:00:28.8]} 85. Rh4 {[%clk 0:00:30.5]} 85... Qc2 {[%clk 0:00:25]} 86.
Rf4 {[%clk 0:00:30.2]} 86... Kf6 {[%clk 0:00:25.2]} 87. Kg2 {[%clk 0:00:30.4]}
87... Kg5 {[%clk 0:00:25.5]} 88. Rh4 {[%clk 0:00:30.7]} 88... Qc6+ {[%clk
0:00:25.7]} 89. Kg1 {[%clk 0:00:30.8]} 89... Qf3 {[%clk 0:00:25.7]} 90. Rf4
{[%clk 0:00:31.1]} 90... Qd1+ {[%clk 0:00:21.7]} 91. Kg2 {[%clk 0:00:31]} 91...
Qd2 {[%clk 0:00:22.3]} 92. Rh4 {[%clk 0:00:30.9]} 92... Qe2 {[%clk 0:00:21.3]}
93. Rf4 {[%clk 0:00:30.7]} 93... Qe1 {[%clk 0:00:21.3]} 94. Rh4 {[%clk
0:00:30.5]} 1/2-1/2

[Event "*** Titled Tuesday Blitz"]
[Site "Chess.com"]
[Date "2020.03.03"]
[Round "3"]
[White "vpsetter"]
[Black "isla88"]
[Result "1-0"]
[WhiteElo "2587"]
[BlackElo "2321"]
[TimeControl "180+1"]
[EndTime "13:32:30 PST"]
[Termination "vpsetter won by checkmate"]

1. e4 {[%clk 0:03:00.2]} 1... c5 {[%clk 0:02:59.9]} 2. Nf3 {[%clk 0:02:56.3]}
2... Nc6 {[%clk 0:02:58.7]} 3. d4 {[%clk 0:02:56.6]} 3... cxd4 {[%clk
0:02:57.3]} 4. Nxd4 {[%clk 0:02:57.5]} 4... e5 {[%clk 0:02:56.7]} 5. Nb5 {[%clk
0:02:53.6]} 5... d6 {[%clk 0:02:56.9]} 6. N1c3 {[%clk 0:02:50.8]} 6... a6 {[%clk
0:02:55.4]} 7. Na3 {[%clk 0:02:50.6]} 7... Be7 {[%clk 0:02:56]} 8. Nd5 {[%clk
0:02:50.1]} 8... Nf6 {[%clk 0:02:54.9]} 9. Nxf6+ {[%clk 0:02:45.8]} 9... Bxf6
{[%clk 0:02:53.8]} 10. Nc4 {[%clk 0:02:44.6]} 10... O-O {[%clk 0:02:53.9]} 11.
Be3 {[%clk 0:02:36.8]} 11... Be7 {[%clk 0:02:34.5]} 12. Nb6 {[%clk 0:02:34.4]}
12... Rb8 {[%clk 0:02:34.2]} 13. Nd5 {[%clk 0:02:33.7]} 13... b5 {[%clk
0:02:24.6]} 14. g4 {[%clk 0:02:27.8]} 14... Bg5 {[%clk 0:02:05.3]} 15. h4 {[%clk
0:02:12.9]} 15... Bxe3 {[%clk 0:02:03.7]} 16. fxe3 {[%clk 0:02:04.6]} 16... Qa5+
{[%clk 0:01:59.4]} 17. Kf2 {[%clk 0:01:40.3]} 17... Qd8 {[%clk 0:01:42]} 18. Be2
{[%clk 0:01:31.3]} 18... Ne7 {[%clk 0:01:40.9]} 19. Bf3 {[%clk 0:00:36.3]} 19...
Nxd5 {[%clk 0:01:34.6]} 20. Qxd5 {[%clk 0:00:34.1]} 20... Be6 {[%clk 0:01:28.3]}
21. Qd2 {[%clk 0:00:27.9]} 21... Rc8 {[%clk 0:01:25.3]} 22. c3 {[%clk
0:00:24.1]} 22... Qc7 {[%clk 0:01:24.1]} 23. Rad1 {[%clk 0:00:21.3]} 23... Rfd8
{[%clk 0:01:14.2]} 24. a3 {[%clk 0:00:18.6]} 24... Qc4 {[%clk 0:00:59.4]} 25. g5
{[%clk 0:00:18.5]} 25... d5 {[%clk 0:00:55.4]} 26. exd5 {[%clk 0:00:17.4]} 26...
e4 {[%clk 0:00:55.5]} 27. Be2 {[%clk 0:00:17.6]} 27... Qxd5 {[%clk 0:00:52.5]}
28. Qxd5 {[%clk 0:00:17.4]} 28... Bxd5 {[%clk 0:00:52.5]} 29. Rd4 {[%clk
0:00:17]} 29... Bb7 {[%clk 0:00:43.2]} 30. Rhd1 {[%clk 0:00:16.4]} 30... Rxd4
{[%clk 0:00:35.3]} 31. Rxd4 {[%clk 0:00:17.3]} 31... Bc6 {[%clk 0:00:34.7]} 32.
Bg4 {[%clk 0:00:15.6]} 32... Ra8 {[%clk 0:00:25.3]} 33. Rd6 {[%clk 0:00:14.4]}
33... Bb7 {[%clk 0:00:21.6]} 34. Kg3 {[%clk 0:00:13.4]} 34... Kf8 {[%clk
0:00:21.4]} 35. Kf4 {[%clk 0:00:13.4]} 35... Bc8 {[%clk 0:00:18.2]} 36. Be2
{[%clk 0:00:11.2]} 36... Ke7 {[%clk 0:00:16.2]} 37. Rb6 {[%clk 0:00:09.9]} 37...
Bd7 {[%clk 0:00:14.7]} 38. Kxe4 {[%clk 0:00:08.4]} 38... Re8 {[%clk 0:00:14.1]}
39. Kf4 {[%clk 0:00:07.2]} 39... Bc8 {[%clk 0:00:13.1]} 40. Rc6 {[%clk
0:00:07.4]} 40... Kd7 {[%clk 0:00:13.1]} 41. Rc5 {[%clk 0:00:07.3]} 41... Kd6
{[%clk 0:00:13.2]} 42. b4 {[%clk 0:00:05.1]} 42... Bb7 {[%clk 0:00:13.7]} 43.
Bd3 {[%clk 0:00:05.2]} 43... g6 {[%clk 0:00:13.2]} 44. e4 {[%clk 0:00:05.5]}
44... h6 {[%clk 0:00:11]} 45. e5+ {[%clk 0:00:05.9]} 45... Kd7 {[%clk 0:00:11]}
46. gxh6 {[%clk 0:00:06.8]} 46... Rh8 {[%clk 0:00:11.3]} 47. Kg5 {[%clk
0:00:07.1]} 47... Ke6 {[%clk 0:00:11.4]} 48. Rc7 {[%clk 0:00:06.4]} 48... Bd5
{[%clk 0:00:11]} 49. c4 {[%clk 0:00:06.5]} 49... bxc4 {[%clk 0:00:10.9]} 50.
Bxc4 {[%clk 0:00:07.1]} 50... Kxe5 {[%clk 0:00:11]} 51. Rc5 {[%clk 0:00:06]}
51... f6+ {[%clk 0:00:11.1]} 52. Kxg6 {[%clk 0:00:04.7]} 52... Rg8+ {[%clk
0:00:10.2]} 53. Kh7 {[%clk 0:00:04.8]} 53... Rg1 {[%clk 0:00:08.5]} 54. Rxd5+
{[%clk 0:00:04.4]} 54... Ke6 {[%clk 0:00:09]} 55. Rc5+ {[%clk 0:00:04.4]} 55...
Ke7 {[%clk 0:00:09.9]} 56. Rc7+ {[%clk 0:00:04.4]} 56... Kd6 {[%clk 0:00:09.7]}
57. Rg7 {[%clk 0:00:05.3]} 57... Re1 {[%clk 0:00:09.7]} 58. Bf7 {[%clk
0:00:05.7]} 58... Re7 {[%clk 0:00:09.9]} 59. Kg8 {[%clk 0:00:05.2]} 59... f5
{[%clk 0:00:09.9]} 60. h7 {[%clk 0:00:04.8]} 60... f4 {[%clk 0:00:10.8]} 61.
h8=Q {[%clk 0:00:04.8]} 61... Re8+ {[%clk 0:00:11.7]} 62. Bxe8 {[%clk
0:00:02.7]} 62... f3 {[%clk 0:00:12.6]} 63. Qh6+ {[%clk 0:00:03]} 63... Kd5
{[%clk 0:00:13.5]} 64. Rf7 {[%clk 0:00:01.4]} 64... Kc4 {[%clk 0:00:14.4]} 65.
Bc6 {[%clk 0:00:01.6]} 65... Kb3 {[%clk 0:00:15.3]} 66. Qe3+ {[%clk 0:00:02]}
66... Ka2 {[%clk 0:00:15.6]} 67. Rxf3 {[%clk 0:00:02]} 67... Kb1 {[%clk
0:00:16.5]} 68. Rf2 {[%clk 0:00:02.9]} 68... Ka1 {[%clk 0:00:15.9]} 69. Qe1#
{[%clk 0:00:03.8]} 1-0

[Event "*** Titled Tuesday Blitz"]
[Site "Chess.com"]
[Date "2020.03.03"]
[Round "3"]
[White "Amirreza_p"]
[Black "JulianProleiko"]
[Result "1-0"]
[WhiteElo "2794"]
[BlackElo "2481"]
[TimeControl "180+1"]
[EndTime "13:32:41 PST"]
[Termination "Amirreza_p won by checkmate"]

1. e4 {[%clk 0:02:57.8]} 1... c6 {[%clk 0:02:53.2]} 2. d4 {[%clk 0:02:57.3]}
2... d5 {[%clk 0:02:54.1]} 3. f3 {[%clk 0:02:57.4]} 3... g6 {[%clk 0:02:53.5]}
4. Nc3 {[%clk 0:02:55.8]} 4... Bg7 {[%clk 0:02:53.4]} 5. Be3 {[%clk 0:02:55.4]}
5... Qb6 {[%clk 0:02:52.9]} 6. Rb1 {[%clk 0:02:52.4]} 6... e5 {[%clk 0:02:50.5]}
7. Nge2 {[%clk 0:02:50.6]} 7... dxe4 {[%clk 0:02:46.4]} 8. Nxe4 {[%clk
0:02:45.3]} 8... Qc7 {[%clk 0:02:34.6]} 9. d5 {[%clk 0:02:41.9]} 9... f5 {[%clk
0:02:31.1]} 10. Ng5 {[%clk 0:02:34.1]} 10... cxd5 {[%clk 0:02:26.5]} 11. Qxd5
{[%clk 0:02:30]} 11... Nf6 {[%clk 0:02:27]} 12. Qc5 {[%clk 0:02:23.1]} 12...
Qxc5 {[%clk 0:02:25.6]} 13. Bxc5 {[%clk 0:02:24]} 13... b6 {[%clk 0:02:16.2]}
14. Ba3 {[%clk 0:02:20.1]} 14... h6 {[%clk 0:02:12.5]} 15. Nh3 {[%clk
0:02:17.7]} 15... Ba6 {[%clk 0:02:01.6]} 16. Nc3 {[%clk 0:02:16]} 16... Bxf1
{[%clk 0:02:00.8]} 17. Rxf1 {[%clk 0:02:13.1]} 17... Nc6 {[%clk 0:02:00.9]} 18.
Rd1 {[%clk 0:02:02.6]} 18... Kf7 {[%clk 0:01:57.6]} 19. Rf2 {[%clk 0:01:49.8]}
19... Rhd8 {[%clk 0:01:56.6]} 20. Rfd2 {[%clk 0:01:48.8]} 20... Rxd2 {[%clk
0:01:56.4]} 21. Rxd2 {[%clk 0:01:49.7]} 21... Rd8 {[%clk 0:01:57.3]} 22. Rxd8
{[%clk 0:01:48.7]} 22... Nxd8 {[%clk 0:01:58.2]} 23. Nf2 {[%clk 0:01:46.6]}
23... Nc6 {[%clk 0:01:56.5]} 24. Nb5 {[%clk 0:01:38.4]} 24... Ke6 {[%clk
0:01:55.1]} 25. c4 {[%clk 0:01:36.9]} 25... Ne8 {[%clk 0:01:46.7]} 26. Kd2
{[%clk 0:01:31.3]} 26... Bf6 {[%clk 0:01:41.6]} 27. Nd1 {[%clk 0:01:19.1]} 27...
h5 {[%clk 0:01:34.7]} 28. Kd3 {[%clk 0:01:17.3]} 28... Bg5 {[%clk 0:01:33.6]}
29. b3 {[%clk 0:01:10.4]} 29... a6 {[%clk 0:01:33.7]} 30. Nbc3 {[%clk
0:01:09.8]} 30... Nf6 {[%clk 0:01:28.3]} 31. Na4 {[%clk 0:01:05.6]} 31... Nd7
{[%clk 0:01:21.8]} 32. Ndc3 {[%clk 0:01:04.9]} 32... Bd8 {[%clk 0:01:11.5]} 33.
h3 {[%clk 0:00:52]} 33... Nf6 {[%clk 0:01:08]} 34. Bc1 {[%clk 0:00:46.7]} 34...
f4 {[%clk 0:01:01.1]} 35. Bd2 {[%clk 0:00:45.3]} 35... g5 {[%clk 0:00:58.4]} 36.
Be1 {[%clk 0:00:45.3]} 36... g4 {[%clk 0:00:53.5]} 37. Bf2 {[%clk 0:00:45]}
37... Nb4+ {[%clk 0:00:49.9]} 38. Ke2 {[%clk 0:00:42.1]} 38... b5 {[%clk
0:00:47]} 39. cxb5 {[%clk 0:00:39.7]} 39... axb5 {[%clk 0:00:47.9]} 40. Nc5+
{[%clk 0:00:38.2]} 40... Kf5 {[%clk 0:00:48]} 41. Nxb5 {[%clk 0:00:28.9]} 41...
Nxa2 {[%clk 0:00:48]} 42. Nd6+ {[%clk 0:00:28.3]} 42... Kg6 {[%clk 0:00:45.9]}
43. Nde4 {[%clk 0:00:28.3]} 43... Nxe4 {[%clk 0:00:42.2]} 44. Nxe4 {[%clk
0:00:29.2]} 44... gxh3 {[%clk 0:00:38.5]} 45. gxh3 {[%clk 0:00:29]} 45... Be7
{[%clk 0:00:38.7]} 46. Be1 {[%clk 0:00:28.2]} 46... Nb4 {[%clk 0:00:37.5]} 47.
Bxb4 {[%clk 0:00:27.6]} 47... Bxb4 {[%clk 0:00:38.4]} 48. Kd3 {[%clk 0:00:28]}
48... Kf5 {[%clk 0:00:35]} 49. Kc4 {[%clk 0:00:27]} 49... Be7 {[%clk 0:00:32.2]}
50. Kd5 {[%clk 0:00:26.7]} 50... Bb4 {[%clk 0:00:31.3]} 51. Kc6 {[%clk
0:00:26.6]} 51... Ke6 {[%clk 0:00:27.8]} 52. Kb5 {[%clk 0:00:24.7]} 52... Be1
{[%clk 0:00:25.7]} 53. Kc4 {[%clk 0:00:24.7]} 53... Ba5 {[%clk 0:00:23.1]} 54.
b4 {[%clk 0:00:24.1]} 54... Bb6 {[%clk 0:00:23.1]} 55. Nc5+ {[%clk 0:00:20.5]}
55... Kd6 {[%clk 0:00:21]} 56. Ne4+ {[%clk 0:00:17.9]} 56... Ke6 {[%clk
0:00:20.8]} 57. Kb5 {[%clk 0:00:18.2]} 57... Bd4 {[%clk 0:00:15.9]} 58. Kc6
{[%clk 0:00:18.4]} 58... Be3 {[%clk 0:00:13]} 59. b5 {[%clk 0:00:18.6]} 59...
Ba7 {[%clk 0:00:12.4]} 60. b6 {[%clk 0:00:17.5]} 60... Bxb6 {[%clk 0:00:12.8]}
61. Kxb6 {[%clk 0:00:18.4]} 61... Kd5 {[%clk 0:00:13.7]} 62. Kc7 {[%clk
0:00:15.5]} 62... Kd4 {[%clk 0:00:13.4]} 63. Kd6 {[%clk 0:00:15.7]} 63... Ke3
{[%clk 0:00:08.2]} 64. Ng5 {[%clk 0:00:10.6]} 64... e4 {[%clk 0:00:07.2]} 65.
fxe4 {[%clk 0:00:07.1]} 65... f3 {[%clk 0:00:07.5]} 66. Nxf3 {[%clk 0:00:06.8]}
66... Kxf3 {[%clk 0:00:08.4]} 67. e5 {[%clk 0:00:06.4]} 67... Kg3 {[%clk
0:00:08.6]} 68. e6 {[%clk 0:00:06.9]} 68... Kxh3 {[%clk 0:00:09.5]} 69. e7
{[%clk 0:00:07]} 69... Kg2 {[%clk 0:00:08.6]} 70. e8=Q {[%clk 0:00:07.9]} 70...
h4 {[%clk 0:00:09.5]} 71. Qg6+ {[%clk 0:00:08.5]} 71... Kh2 {[%clk 0:00:09.2]}
72. Qg4 {[%clk 0:00:08.2]} 72... h3 {[%clk 0:00:10.1]} 73. Ke5 {[%clk
0:00:08.7]} 73... Kh1 {[%clk 0:00:10.5]} 74. Qxh3+ {[%clk 0:00:08.8]} 74... Kg1
{[%clk 0:00:11.4]} 75. Qe3+ {[%clk 0:00:08.2]} 75... Kf1 {[%clk 0:00:11.4]} 76.
Qd2 {[%clk 0:00:07.5]} 76... Kg1 {[%clk 0:00:12.3]} 77. Kf4 {[%clk 0:00:08.3]}
77... Kf1 {[%clk 0:00:13.2]} 78. Kg3 {[%clk 0:00:09.2]} 78... Kg1 {[%clk
0:00:14.1]} 79. Qe1# {[%clk 0:00:10.1]} 1-0